Cogmind - Beta 13 *** ADVENTURER MODE // 2024.04.05 @ 21:42:31 Player: Doske Result: Destroyed by Autobeam Turret with Autobeam Performance ------------- Evolutions (0) 0 Regions Visited (3) 600 Robots Destroyed (41) 205 Value Destroyed (1175) 1175 Prototype IDs (3) 60 Alien Tech Used (0) 0 Bonus (0) 0 TOTAL SCORE: 2040 Bonus ------- None Cogmind --------- Core Integrity 0/250 Matter 28/300 Energy 200/200 System Corruption 0% Temperature Cool (6) Movement Treading (157) Location -10/Subcaves Parts ------- > --- POWER (1) -------- Subdweller Power Source > --- PROPULSION (2) --- Armored Treads Advanced Treads > --- UTILITY (2) ------ Medium Storage Unit Signal Interpreter > --- WEAPON (2) ------- Makeshift Axe > --- INVENTORY (10) --- Ion Engine Armored Treads Makeshift Flight Unit Sensor Array Improved Terrain Scan Processor Improved Light Armor Plating Hacking Suite Datajack Peak State ------------ > --- POWER ------------ Subdweller Power Source > --- PROPULSION ------- Armored Treads Advanced Treads > --- UTILITY ---------- Medium Storage Unit Signal Interpreter > --- WEAPON ----------- Rocket Launcher Makeshift Axe > --- INVENTORY -------- Ion Engine Light Treads Armored Treads Makeshift Flight Unit Sensor Array Improved Terrain Scan Processor Improved Light Armor Plating Hacking Suite Heavy Assault Rifle Datajack [Rating: 18] Favorites ----------- Power Ion Engine Engine Ion Engine Propulsion Light Treads Treads Light Treads Wheel Compact Wheel Utility Signal Interpreter Storage Small Storage Unit Processor Signal Interpreter Weapon Assault Rifle Ballistic Gun Assault Rifle Launcher Rocket Launcher Slashing Weapon Makeshift Axe Special Melee Weapon Datajack Build | -11 -10 -10 -10 ------- Run | Yrd Mat Min Sub Slots Evolved . | . . . . Power . | . . . . Propulsion . | . . . . Utility . | . . . . Weapon . | . . . . Parts Attached 25 | 7 6 8 4 Power 3 | 1 1 . 1 Engine 3 | 1 1 . 1 Core . | . . . . Reactor . | . . . . Propulsion 8 | 3 3 2 . Treads 7 | 2 3 2 . Leg . | . . . . Wheel 1 | 1 . . . Hover . | . . . . Flight . | . . . . Utility 3 | 1 1 1 . Device . | . . . . Storage 2 | 1 . 1 . Processor 1 | . 1 . . Hackware . | . . . . Protection . | . . . . Artifact . | . . . . Weapon 11 | 2 1 5 3 Energy Gun . | . . . . Energy Cannon . | . . . . Ballistic Gun 6 | 2 1 2 1 Ballistic Cannon . | . . . . Launcher 2 | . . 2 . Special Weapon . | . . . . Impact Weapon . | . . . . Slashing Weapon 2 | . . . 2 Piercing Weapon . | . . . . Special Melee Weapon 1 | . . 1 . Unidentified Prototypes . | . . . . Parts Lost 3 | . 1 . 2 Power 1 | . 1 . . Propulsion . | . . . . Utility . | . . . . Weapon 2 | . . . 2 Highest Loss Streak 1 | . 1 . 1 To Critical Strikes . | . . . . Average Slot Usage (%) 96 | . 97 100 89 Engine 13 | . 13 14 14 Treads 27 | . 26 28 28 Storage 14 | . 14 14 14 Processor 13 | . 13 14 14 Ballistic Gun 16 | . 27 16 5 Launcher 7 | . . 11 10 Naked Turns . | . . . . Heaviest Build 22 | 14 14 22 22 Greatest Support 42 | 40 40 42 42 Greatest Overweight (x) 4 | 1 4 . . Average Overweight (x) . | . . . . Largest Inventory Capacity 10 | 8 8 10 10 Average Capacity 8 | 7 8 9 10 Most Carried 10 | 6 8 10 10 Average Carried 6 | 2 6 9 9 Final Capacity 10 | 8 8 10 10 Final Carried 10 | 6 8 10 8 Class Distribution -------------------- 100% | Mutant Dominant Class ---------------- Mutant | -10/Materials Mutant | -10/Mines Mutant | -10/Subcaves Resources | -11 -10 -10 -10 ----------- Run | Yrd Mat Min Sub Matter Collected 984 | 213 515 186 70 Remotely . | . . . . Salvage Created 1229 | . 876 250 103 Parts 74 | . 55 16 3 Haulers Intercepted . | . . . . Recyclers Shooed . | . . . . Parts Field Recycled . | . . . . Retrieved Matter . | . . . . Parts Self-Destructed 6 | . . . 6 Prevented . | . . . . Kills | -11 -10 -10 -10 ------- Run | Yrd Mat Min Sub Combat Hostiles Destroyed 34 | . 18 8 8 Guns 22 | . 18 4 . AOE 12 | . . 4 8 Classes Destroyed 9 | . 5 2 2 Worker 2 | . 1 1 . Tunneler 1 | . . 1 . Recycler 2 | . 2 . . Turret 1 | . . . 1 Watcher 1 | . 1 . . Swarmer 7 | . 3 3 1 Grunt 19 | . 15 4 . Sentry 2 | . . 1 1 Subdweller 6 | . . . 6 Best Kill Streak 4 | . 4 4 3 Combat Bots Only 3 | . 3 3 3 Max Kills in Single Turn 4 | . 1 4 1 Gunslinging . | . . . . Exploded 3 | . . 3 1 Melee . | . . . . Uniques/NPCs Destroyed . | . . . . Combat | -11 -10 -10 -10 -------- Run | Yrd Mat Min Sub Hostile Shots Fired 199 | . 85 26 88 Missed 57 | . 18 8 31 Damage Taken 1417 | . 588 250 579 Core 253 | . 112 24 117 Absorbed by Shields . | . . . . Ignored by Resistances 435 | . 189 73 173 Regen/Repaired (Parts) 260 | . 260 . . Core Remaining (%) 100 | 100 . . . Volleys Fired 115 | . 68 20 27 Largest 2 | . 2 2 1 Hottest 40 | . 40 40 33 Shots Fired 194 | . 136 31 27 Gun 163 | . 136 27 . Cannon . | . . . . Launcher 31 | . . 4 27 Special . | . . . . Kinetic 163 | . 136 27 . Thermal . | . . . . Explosive 31 | . . 4 27 Electromagnetic . | . . . . Robot Hit Streak 26 | . 26 17 7 Robot Miss Streak 3 | . 3 1 1 Penetration Max . | . . . . Secondary Targets 1 | . 1 . . Max Gunslinging Chain 1 | . 1 . . Shots Hit Robots 138 | . 101 27 10 Core Hits 75 | . 41 15 19 Critical Kills . | . . . . Critical Parts Destroyed 1 | . 1 . . Critical Strikes 1 | . 1 . . Destroy 1 | . 1 . . Melee Attacks 11 | . . . 11 Impact . | . . . . Slashing 11 | . . . 11 Piercing . | . . . . Sneak Attacks . | . . . . Combat Hostiles . | . . . . Follow-up Attacks . | . . . . Damage Inflicted 3230 | . 1287 763 1180 Guns 1604 | . 1282 322 . Cannons . | . . . . Explosions 1601 | . . 421 1180 Melee . | . . . . Ramming 25 | . 5 20 . Kinetic 1604 | . 1282 322 . Thermal . | . . . . Explosive 1601 | . . 421 1180 Electromagnetic . | . . . . Impact . | . . . . Slashing . | . . . . Piercing . | . . . . Highest Corruption . | . . . . Average Corruption . | . . . . Corruption Purged . | . . . . Corruption Blocked . | . . . . Overload Shots . | . . . . Overflow Damage 11 | . . 11 . Projectiles . | . . . . Explosions 11 | . . 11 . Melee . | . . . . Knockbacks . | . . . . Impact . | . . . . Kinetic . | . . . . Secondary . | . . . . Self-Inflicted Damage 38 | . . . 38 Shots 1 | . . . 1 Rammed 5 | . 1 4 . Targets Rammed 6 | . 2 4 . Kicked . | . . . . Crushed 1 | . 1 . . Highest Temperature 27 | . 27 20 12 Average Temperature 6 | . 4 7 9 Received Heat Transfer 849 | . 417 171 261 Siege Activations . | . . . . Robots Corrupted . | . . . . Combat Hostiles . | . . . . Parts Fried . | . . . . Impact Corruptions . | . . . . Robots Melted . | . . . . Combat Hostiles . | . . . . Parts Melted . | . . . . Heat Transferred . | . . . . Parts Sabotaged . | . . . . Parts Stolen . | . . . . Parts Stripped . | . . . . Power Chain Reactions . | . . . . Alert | -11 -10 -10 -10 ------- Run | Yrd Mat Min Sub Peak Influence 219 | . 219 190 . Initial 58 | . . 58 . Average 56 | . 121 59 . Maximum Alert Level 1 | . 1 . . Low Security (%) 96 | 100 88 100 . Level 1 3 | . 11 . . Level 2 . | . . . . Level 3 . | . . . . Level 4 . | . . . . Level 5 . | . . . . High Security . | . . . . Max Security . | . . . . Squads Dispatched 5 | . 4 1 . Investigation 5 | . 4 1 . Extermination . | . . . . Reinforcement . | . . . . Assault . | . . . . Garrison . | . . . . Intercept . | . . . . Searches Triggered . | . . . . Construction Impeded . | . . . . Haulers Reinforced . | . . . . Active Scanning Responses . | . . . . Cargo Convoy Interrupts . | . . . . Stealth | -11 -10 -10 -10 --------- Run | Yrd Mat Min Sub Distress Signals . | . . . . Communications Jammed . | . . . . Distress Signals . | . . . . Times Spotted 67 | . 22 8 37 Peak Tracking Total 4 | . 4 3 3 Tactical Retreats 4 | . . . 4 Traps | -11 -10 -10 -10 ------- Run | Yrd Mat Min Sub Traps Triggered 1 | . 1 . . Indirectly . | . . . . Trap Hack Attempts . | . . . . Triggered . | . . . . Disarmed . | . . . . Reprogrammed . | . . . . Reused . | . . . . Traps Extracted . | . . . . Installed . | . . . . Triggered . | . . . . Machines | -11 -10 -10 -10 ---------- Run | Yrd Mat Min Sub Machines Disabled 3 | . 1 . 2 Max in Single Turn 2 | . 1 . 2 Machines Repaired . | . . . . Machines Dismantled . | . . . . Machines Sabotaged . | . . . . Overloaded Fab Kills . | . . . . Hacking | -11 -10 -10 -10 --------- Run | Yrd Mat Min Sub Machines Accessed 11 | . 8 2 1 Terminals 6 | . 6 . . Fabricators . | . . . . Repair Stations 1 | . 1 . . Recycling Units 1 | . 1 . . Scanalyzers . | . . . . Garrison Access . | . . . . Total Hacks 41 | . 35 2 4 Successful 25 | . 19 2 4 Failed 16 | . 16 . . Catastrophic . | . . . . Database Lockouts . | . . . . Manual 22 | . 20 2 . Terminals 22 | . 22 . . Fabricators . | . . . . Repair Stations 10 | . 10 . . Recycling Units 3 | . 3 . . Scanalyzers . | . . . . Garrison Access . | . . . . Terminal Hacks 15 | . 9 2 4 Record 6 | . 2 . 4 Prototype ID Bank 2 | . 2 . . Open Door 2 | . . 2 . Terminal Index 1 | . 1 . . Fabricator Index 1 | . 1 . . Zone Layout 3 | . 3 . . Fabricator Hacks . | . . . . Repair Station Hacks 9 | . 9 . . Scan Component 4 | . 4 . . Repair 4 | . 4 . . Refit 1 | . 1 . . Recycling Unit Hacks 1 | . 1 . . Retrieve Components 1 | . 1 . . Scanalyzer . | . . . . Garrison Access Hacks . | . . . . Unauthorized Hacks . | . . . . Terminals . | . . . . Fabricators . | . . . . Repair Stations . | . . . . Recycling Units . | . . . . Scanalyzers . | . . . . Garrison Access . | . . . . Data Cores Recovered . | . . . . Used . | . . . . Hacking Detections 7 | . 7 . . Full Trace Events 6 | . 6 . . Feedback Events . | . . . . Feedback Blocked . | . . . . Robot Schematics Acquired . | . . . . Robots Built . | . . . . Authchips . | . . . . Time . | . . . . Total Robot Build Rating . | . . . . Part Schematics Acquired . | . . . . Parts Built . | . . . . Authchips . | . . . . Time . | . . . . Total Part Build Rating . | . . . . Parts Repaired 4 | . 4 . . Time 104 | . 104 . . Parts Recycled . | . . . . Recycled Matter . | . . . . Retrieved Matter . | . . . . Retrieved Components . | . . . . Parts Scanalyzed . | . . . . Part Schematics Acquired . | . . . . Parts Damaged . | . . . . Bothacking | -11 -10 -10 -10 ------------ Run | Yrd Mat Min Sub Used RIF Installer . | . . . . Robots Hacked . | . . . . Non-combat . | . . . . Combat . | . . . . Robot Hacks Applied . | . . . . Relay Couplers Released . | . . . . Fabnet Peak Effective % . | . . . . Robots Rewired . | . . . . Allies Hacked . | . . . . Hacks Repelled . | . . . . Allies | -11 -10 -10 -10 -------- Run | Yrd Mat Min Sub Total Allies . | . . . . Largest Group . | . . . . Highest-Rated Group . | . . . . Highest-Rated Ally . | . . . . Total Orders . | . . . . Ally Attacks . | . . . . Total Damage . | . . . . Kills . | . . . . Allies Corrupted . | . . . . Allies Melted . | . . . . Intel | -11 -10 -10 -10 ------- Run | Yrd Mat Min Sub Robot Analysis Total . | . . . . Derelict Logs Recovered 3 | . . 2 1 Drone Launches . | . . . . Drone Recoveries . | . . . . Exploration | -11 -10 -10 -10 ------------- Run | Yrd Mat Min Sub Turns Passed 4613 | 1323 1100 1206 984 Spaces Moved 2178 | 450 456 701 571 Core 6 | 4 2 . . Treads 2172 | 446 454 701 571 Legs . | . . . . Wheels . | . . . . Hover . | . . . . Flight . | . . . . Fastest Speed 50 | 50 160 157 157 Average Speed 158 | 159 160 158 157 Slowest Speed 250 | 160 250 165 157 Overloaded Moves . | . . . . Propulsion Burnouts . | . . . . Robots Hopped . | . . . . Cave-ins Triggered . | . . . . Exploration Rate (%) 64 | 42 73 99 42 Regions Visited 3 Branch Regions 2 Pre-discovered Areas 2 | . . 1 1 Known Exits Taken 2 | . 1 1 . Unknown Exits Taken 1 | 1 . . . Scrap Searched . | . . . . Spaces Dug 8 | . . . 8 Terrain Destroyed 192 | . 39 24 129 Melee 8 | . . . 8 Projectile . | . . . . AOE 184 | . 39 24 121 Terrain Rammed . | . . . . Walls Destroyed . | . . . . Machines Disabled . | . . . . Actions | -11 -10 -10 -10 --------- Run | Yrd Mat Min Sub Total 3134 | 1058 692 760 624 Wait 740 | 589 141 10 . Move 2175 | 449 455 700 571 Hop . | . . . . Pick Up 40 | 12 13 10 5 Fast Attach . | . . . . Attach 15 | 7 6 . 2 Detach 2 | 1 1 . . Swap 10 | . . 8 2 Drop 20 | . 6 8 6 Fire 115 | . 68 20 27 Melee 11 | . . . 11 Ram . | . . . . Kick . | . . . . Crush 6 | . 2 4 . Escape Stasis . | . . . . Rewire . | . . . . Trap . | . . . . Miscellaneous . | . . . . Route ------- -11/Scrapyard -10/Materials (discovered 4 exits: *Mat x2 / *Min x2) -10/Mines (discovered 3 exits: *Mat x2 / *Sub) -10/Subcaves (discovered 2 exits: *Mat / [*Rec]) History --------- Turn | Location | Event 27 | -11/Scrapyard | Discovered new exit (range 16) 1324 | -11/Scrapyard | Entered Materials 1325 | -10/Materials | Build established: Mutant 1587 | -10/Materials | Discovered new exit (range 15) 1665 | -10/Materials | Identified exit to Mines 1924 | -10/Materials | Repaired Lgt. Treads 1950 | -10/Materials | Repaired Lgt. Treads 1988 | -10/Materials | Repaired Lgt. Treads 2016 | -10/Materials | Repaired Assault Rifle 2045 | -10/Materials | Discovered new exit (range 15) 2077 | -10/Materials | Identified exit to Materials 2150 | -10/Materials | Discovered exit to Mines (range 15) 2357 | -10/Materials | Discovered exit to Materials (range 16) 2424 | -10/Materials | Entered Mines 2594 | -10/Mines | Received a Rocket Launcher from a helpful Derelict 2670 | -10/Mines | Met a Derelict who couldn't figure out how to use a Trap Extractor 2825 | -10/Mines | Joined a pair of Derelicts in attacking an 0b10 outpost 2851 | -10/Mines | Core integrity fell below 50% 2896 | -10/Mines | Learned location of Storage (-9) 3022 | -10/Mines | Learned Materials emergency access door positions 3126 | -10/Mines | Discovered exit to Materials (range 7) 3152 | -10/Mines | Discovered exit to Materials (range 11) 3172 | -10/Mines | Met a Derelict shopkeep closing up shop 3615 | -10/Mines | Discovered new exit (range 9) 3628 | -10/Mines | Identified exit to Subcaves 3630 | -10/Mines | Entered Subcaves 3691 | -10/Subcaves | Shifting Twisted Machinery released Mak. Flight Unit 3950 | -10/Subcaves | Learned 2 Materials zone layouts 4013 | -10/Subcaves | A swath of the cavern ceiling suddenly collapsed 4078 | -10/Subcaves | Ambushed by Subdweller buried in earth 4198 | -10/Subcaves | Discovered new exit (range 9) 4214 | -10/Subcaves | Identified exit to Materials 4312 | -10/Subcaves | Visited Clippyterm 4317 | -10/Subcaves | Learned location of Extension (-6) 4346 | -10/Subcaves | Ambushed by Subdweller buried in earth 4354 | -10/Subcaves | Discovered new exit (range 12) 4357 | -10/Subcaves | Core integrity fell below 20% 4458 | -10/Subcaves | Shifting Twisted Machinery released Piercing Trap 4467 | -10/Subcaves | Shifting Twisted Machinery released Spk. Treads 4614 | -10/Subcaves | Destroyed by Autobeam Turret with Autobeam Last Messages --------------- 04354_ EXIT=FOUND 04355_ Subatomizers dissect the Sub. Monowheel. 04358_ Flight Unit fries itself beyond repair. 04358_ The unstable cave ceiling collapses. 04363_ Autobeam Turret destroyed. 04364_ Lgt. Assault Rifle fries itself beyond repair. 04366_ Rocket Launcher destroyed. 04368_ The unstable cave ceiling collapses. 04402_ 1Y-N0F(u) tweaks Twisted Machinery. 04416_ Dropped Lgt. Treads. 04437_ Subatomizers dissect the Lgt. Treads. Piercing Trap falls loose from the Twisted Machinery. Spk. Treads falls loose from the Twisted Machinery. 04473_ Acquired Piercing Trap. 04474_ Dropped Piercing Trap. 04602_ The unstable cave ceiling collapses. 04612_ Acquired 9 matter. Map ----- +----------------------------------------------------+ | # ## ### #?????????? | | ### ## ##?# ##?????????? | | ### & ####??# ### #??????????? | | & ##?????## #??###??????????? | | ## ##???????##### #???????????????? | | ### # # ##????????????###???????????????? | | ??### # ###???????????????????????????????? | | ????### # ##?????????????????????????????????? | | ??????# # #??????????????????????????????????? | | ??????# ###??????????????????????????????????? | | ??????# #????????????????????????????????????? | | ??????# #????????????????????????????????????? | | ??????# # ##???????????????????????????????????? | | ??????# # ##??????????????????????????????????? | | ?????## ##?????????????????????????????????? | | ?????# #?????????????????????????????????? | | ?????# # ###???????????????????????????????? | | ?????# #???????????????????????????????? | | ???### #???????????????????????????????? | | ???# ## #????????#??????????????????????? | | #### ##??###### ??????????????????????? | | ## #######??## # ###???????????????????? | | ## ###???????# # ##??????????????????? | | ##???????## #< # #??????????????????? | | ## #???????# ## #??????????????????? | | ### #??????## @& # #??????????????????? | | #?## ##??????# t & # #??????????????????? | | ???# ####?????## & # ??????????????????? | | ???# ##????# # ##??????????????????? | | ???## ##?#### # #??????????????????? | | ???# ### ### ## ## #??????????????????? | | ???## # ##### #??????????????????? | | ????#### ### # #???###??????????????????? | | ???????#####?### # #??##"####???????????????? | | ?????#####?### & #?##" #???????????????? | | ????## ?# % #?# "" #???????????????? | | ????# #?# #% ## """ #???????????????? | | ????# #?## ## #" " ""##???????????????? | | ????# #??# ### =""###????????????????? | | ?????# #??## ##"" ## ##??????????????????? | | ??????# ##### ######## "#?####?????????????? | | ??????# #?????# "### "##????????????? | | ??????# ## #????## "## ####?????????? | | ?????## #######??#### "# ##????????? | | ????## ##????????# & ########?? | | ???## ##########??## ## ## | | ??## ##### #??## #### ## | | ??# #### #??# ##?## | | ?##" ### #?## #??# | | ?#"" ## = ### #??# ### | +----------------------------------------------------+ Best States ------------- Heat Dissipation 25 Energy Generation 15 Energy Capacity 250 Matter Stores 300 Matter Capacity 300 Sight Range 16 Terrain Scan Density 10 Resistance: KI 20 Resistance: TH 20 Resistance: EX 20 Resistance: EM 20 Resistance: I 20 Resistance: S 20 Resistance: P 20 Evasion (%) 40 Recoil Reduction 2 Offensive Hacking 10 Item Schematics ----------------- None Robot Schematics ------------------ None Fabricated ------------ Nothing Alien Tech Used ----------------- None Achievements -------------- None Challenges ------------ None Game ------ Seed CryofiberTiamatStripper Manual? 0 Play Time 00:44:10 Cumulative 9.4 hours Start 2024.04.05 @ 20:53:45 End 2024.04.05 @ 21:42:31 Sessions 1 Manual Loads 0 Difficulty Adventurer Special Mode None Game No. 5 Rogue 0 Adventurer 5 Explorer 0 Win Type - Total 0 Types 0/0/0/0/0/0/0/0/0 Lore% 14 Gallery% 10 Achievement% 14 Wizard Run 0 Options --------- Layout 2 ASCII 0 Keyboard 1 Movement Numpad Keybinds 0 Fullscreen 2 Font 32/SmallcapsGlow Map View 50x44 Zoom Use 1% Tactical HUD 1 Map Filters NONE Filters NONE Steam 1 RUN: fd0d5166-e537-4c83-841f-d1198bd8c264